{"text_format":"1","workbook":"xlsx","n_sheets":7,"sheets":["1Список","2БЛАНК","3Склад","Sheet1","Иванов","Петров","Сидоров"],"not_rendered":{"charts":0,"images":0,"macros":1,"external_links":1,"defined_names":17,"comments":0,"pivot_tables":1},"unopened":[],"bounds":{"document_bytes":16777216,"sheet_cells":100000,"rows_first":2000,"rows_last":500,"rows_between":2000,"halvings":0,"cell_chars":16384,"cell_head_chars":4096},"cells_cut":0,"cells_raw":0,"read":"whole","date_system":"1900"}

{"sheet":"1Список","index":0,"n_rows":82,"n_cols":2,"rows_kept":82,"cut":false,"hidden":false,"merged":[]}
["Список"]
["Иванов",{"$f":"HYPERLINK(\"#\"&A2&\"!A1\",\"-->\"&A2)","v":"-->Иванов"}]
["Петров","-->Петров"]
["Сидоров","-->Сидоров"]
[null,"-->"]
[null,"-->"]
[null,"-->"]
[null,"-->"]
[null,"-->"]
[null,"-->"]
[null,"-->"]
[null,"-->"]
[null,"-->"]
[null,"-->"]
[null,"-->"]
[null,"-->"]
[null,"-->"]
[null,"-->"]
[null,"-->"]
[null,"-->"]
[null,"-->"]
[null,"-->"]
[null,"-->"]
[null,"-->"]
[null,"-->"]
[null,"-->"]
[null,"-->"]
[null,"-->"]
[null,"-->"]
[null,"-->"]
[null,"-->"]
[null,"-->"]
[null,"-->"]
[null,{"$f":"HYPERLINK(\"#\"&A34&\"!A1\",\"-->\"&A34)","v":"-->"}]
[null,"-->"]
[null,"-->"]
[null,"-->"]
[null,"-->"]
[null,"-->"]
[null,"-->"]
[null,"-->"]
[null,"-->"]
[null,"-->"]
[null,"-->"]
[null,"-->"]
[null,"-->"]
[null,"-->"]
[null,"-->"]
[null,"-->"]
[null,"-->"]
[null,"-->"]
[null,"-->"]
[null,"-->"]
[null,"-->"]
[null,"-->"]
[null,"-->"]
[null,"-->"]
[null,"-->"]
[null,"-->"]
[null,"-->"]
[null,"-->"]
[null,"-->"]
[null,"-->"]
[null,"-->"]
[null,"-->"]
[null,{"$f":"HYPERLINK(\"#\"&A66&\"!A1\",\"-->\"&A66)","v":"-->"}]
[null,"-->"]
[null,"-->"]
[null,"-->"]
[null,"-->"]
[null,"-->"]
[null,"-->"]
[null,"-->"]
[null,"-->"]
[null,"-->"]
[null,"-->"]
[null,"-->"]
[null,"-->"]
[null,"-->"]
[null,"-->"]
[null,"-->"]
[null,"-->"]

{"sheet":"2БЛАНК","index":1,"n_rows":21,"n_cols":10,"rows_kept":21,"cut":false,"hidden":false,"merged":[]}
[{"$f":"HYPERLINK(\"#1Список!A1\",\"список\")","v":"список"}]
["наименование","вид инструмента","инвентарный","серийный","наличие",null,null,null,null,"Аккамуляторная дрель"]
[null,null,null,null,null,null,null,null,null,"Виброножницы"]
[null,null,null,null,null,null,null,null,null,"Виброшлиф"]
[null,null,null,null,null,null,null,null,null,"Гайковёрт"]
[null,null,null,null,null,null,null,null,null,"Калорифер"]
[null,null,null,null,null,null,null,null,null,"Лазер"]
[null,null,null,null,null,null,null,null,null,"Лобзик"]
[null,null,null,null,null,null,null,null,null,"Насос высокогодавления"]
[null,null,null,null,null,null,null,null,null,"Опрессовка"]
[null,null,null,null,null,null,null,null,null,"Пила дисковая"]
[null,null,null,null,null,null,null,null,null,"Пила ленточная"]
[null,null,null,null,null,null,null,null,null,"Пила сабельная"]
[null,null,null,null,null,null,null,null,null,"Пистолет для силикона"]
[null,null,null,null,null,null,null,null,null,"Пылесос"]
[null,null,null,null,null,null,null,null,null,"Сварочный аппарат"]
[null,null,null,null,null,null,null,null,null,"Трубогиб"]
[null,null,null,null,null,null,null,null,null,"Углошлифмашинка"]
[null,null,null,null,null,null,null,null,null,"Фен"]
[null,null,null,null,null,null,null,null,null,"Электродрель"]
[null,null,null,null,null,null,null,null,null,"Электрозаклёпочник"]

{"sheet":"3Склад","index":2,"n_rows":22,"n_cols":4,"rows_kept":22,"cut":false,"hidden":false,"merged":[]}
[{"$f":"HYPERLINK(\"#1Список!A1\",\"список\")","v":"список"}]
["наименование","вид инструмента","судно","склад"]
[null,"Аккамуляторная дрель"]
[null,"Виброножницы"]
[null,"Виброшлиф"]
[null,"Гайковёрт"]
[null,"Калорифер"]
[null,"Лазер"]
[null,"Лобзик"]
[null,"Насос высокогодавления"]
[null,"Опрессовка"]
[null,"Пила дисковая"]
[null,"Пила ленточная"]
[null,"Пила сабельная"]
[null,"Пистолет для силикона"]
[null,"Пылесос"]
[null,"Сварочный аппарат"]
[null,"Трубогиб"]
[null,"Углошлифмашинка"]
[null,"Фен"]
[null,"Электродрель"]
[null,"Электрозаклёпочник"]

{"sheet":"Sheet1","index":3,"n_rows":9,"n_cols":13,"rows_kept":9,"cut":false,"hidden":false,"merged":[]}
["ФИО","наименование","вид инструмента","инвентарный","серийный","наличие",null,null,"ФИО","Сидоров"]
["Иванов","Makita","Углошлифмашинка",null,"456789",1]
["Иванов","Makita","Аккамуляторная дрель",8765,null,1,null,null,"наименование","вид инструмента","инвентарный","серийный","Sum of наличие"]
["Иванов","Набор бит",null,null,null,1,null,null,"Makita","Виброшлиф","1234"," ",1]
["Иванов","Стамеска",null,null,null,1,null,null,"Makita","Пылесос"," ","0987654321",1]
["Петров","Makita","Фен","3456",null,1,null,null,"Makita","Пылесос"," ","1234566899",1]
["Сидоров","Makita","Виброшлиф","1234",null,1,null,null,"Grand Total",null,null,null,3]
["Сидоров","Makita","Пылесос",null,"0987654321",1]
["Сидоров","Makita","Пылесос",null,"1234566899",1]

{"sheet":"Иванов","index":4,"n_rows":6,"n_cols":6,"rows_kept":6,"cut":false,"hidden":false,"merged":[]}
[{"$f":"HYPERLINK(\"#1Список!A1\",\"список\")","v":"список"}]
["наименование","вид инструмента","инвентарный","серийный","наличие","ФИО"]
["Makita","Углошлифмашинка",null,"456789",1,"Иванов"]
["Makita","Аккамуляторная дрель",8765,null,1,"Иванов"]
["Набор бит",null,null,null,1,"Иванов"]
["Стамеска",null,null,null,1,"Иванов"]

{"sheet":"Петров","index":5,"n_rows":10,"n_cols":5,"rows_kept":10,"cut":false,"hidden":false,"merged":[]}
[{"$f":"HYPERLINK(\"#1Список!A1\",\"список\")","v":"список"}]
["наименование","вид инструмента","инвентарный","серийный","наличие"]
["Makita","Фен","3456",null,1]
["Катушка удлинител",null,null,null,1]
["Киянка",null,null,null,1]
["Нож гипрочн",null,null,null,1]
["Нож строит",null,null,null,1]
["Прожектор",null,null,null,1]
["Рулетка",null,null,null,1]
["Фонарик",null,null,null,1]

{"sheet":"Сидоров","index":6,"n_rows":14,"n_cols":5,"rows_kept":14,"cut":false,"hidden":false,"merged":[]}
[{"$f":"HYPERLINK(\"#1Список!A1\",\"список\")","v":"список"}]
["наименование","вид инструмента","инвентарный","серийный","наличие"]
["Makita","Виброшлиф","1234",null,1]
["Makita","Пылесос",null,"0987654321",1]
["Makita","Пылесос",null,"1234566899",1]
["Катушка удлиннитель",null,null,null,1]
["Шпатель",null,null,null,1]
["Киянка",null,null,null,1]
["Ножницы",null,null,null,1]
["Пистолет для скоб",null,null,null,1]
["Прожектор",null,null,null,1]
["Рулетка",null,null,null,1]
["Фонарик",null,null,null,1]
["Ящик",null,null,null,1]